bitfinex-derivatives/quotes_ETHF0:USTF0_20241230
["timestamp","ask_amount","ask_price","bid_price","bid_amount"]
[1735574577346,1.6531,3324.3,3324.2,0.30141]
[1735574577843,3.2078,3324.4,3323.9,44.0078]
[1735574578044,0.30141,3324.2,3324.0,0.30142]
[1735574578449,1.13723406,3324.2,3324.1,0.30141]
[1735574578642,0.83582406,3324.2,3324.1,0.30141]
[1735574578842,0.83582406,3324.2,3323.9,44.0078]
[1735574579043,3.2078,3324.4,3323.4,3.2078]
[1735574579044,0.83582406,3324.0,3323.4,3.2078]
[1735574579245,1.13727406,3323.8,3323.7,0.30145]
[1735574579446,0.83582406,3323.8,3323.7,0.30145]
[1735574579744,1.13726406,3323.8,3323.7,40.8]
[1735574580447,3.2078,3324.0,3323.9,0.30143]
[1735574580753,1.13726406,3323.8,3323.7,40.8]
[1735574581047,1.13726406,3323.8,3323.7,41.10145]
[1735574581343,3.2078,3324.0,3323.7,41.10145]
[1735574581344,3.2078,3324.0,3323.9,0.30143]
[1735574582346,3.2078,3324.4,3323.7,40.8]
[1735574582645,3.2078,3324.4,3324.3,0.3014]
[1735574582845,0.83582406,3324.3,3324.2,1.445]
[1735574583144,0.83582406,3323.9,3323.3,0.75371]
[1735574583347,0.83582406,3323.6,3323.5,42.245]
[1735574583549,1.13728406,3323.6,3323.5,41.10146]
[1735574584147,0.83582406,3323.6,3323.5,41.10146]
[1735574584546,1.13728406,3323.6,3323.5,41.10147]
[1735574584746,0.83582406,3323.6,3323.5,41.10147]
[1735574585049,0.30146,3323.7,3323.6,0.30146]
[1735574585253,1.8242,3323.8,3323.5,41.10146]
[1735574585254,1.13728406,3323.6,3323.5,41.10146]
[1735574585753,1.13728406,3323.6,3323.1,1.445]
[1735574585754,0.83582406,3323.6,3323.1,1.445]
[1735574585945,0.83582406,3323.2,3322.6,3.2078]
[1735574586146,0.83582406,3322.7,3322.6,3.50935]
[1735574586447,0.83582406,3323.1,3323.0,0.30151]
[1735574587051,4.34513406,3323.1,3323.0,0.30151]
[1735574587252,0.30155,3322.6,3322.5,0.30156]
[1735574587453,0.30156,3322.5,3322.4,1.445]
[1735574587651,1.13738406,3322.5,3322.4,1.445]
[1735574587952,0.83582406,3322.5,3322.4,1.445]
[1735574588147,0.83582406,3322.5,3322.4,1.74657]
[1735574588450,1.13738406,3322.5,3322.4,1.445]
[1735574588853,0.83582406,3322.5,3322.4,1.74657]
[1735574589150,3.2078,3322.6,3322.5,0.30156]
[1735574589662,3.2078,3322.6,3322.5,41.10156]
[1735574590051,1.8216,3323.8,3322.6,0.75386]
[1735574590052,3.2078,3323.3,3322.6,0.75386]
[1735574590248,3.2078,3323.3,3323.2,0.3015]
[1735574591356,3.2078,3323.7,3323.6,0.30146]
[1735574591555,0.83582406,3323.9,3323.8,0.30144]
[1735574591757,3.2078,3324.3,3323.5,1.444]
[1735574591953,0.83582406,3324.2,3324.1,0.30141]
[1735574592351,1.8216,3324.4,3324.3,0.3014]
[1735574592557,2.65742406,3324.4,3324.3,0.3014]
[1735574592757,0.83582406,3324.4,3324.3,0.3014]
[1735574593256,3.2078,3324.7,3324.6,0.30137]
[1735574593457,3.2078,3325.1,3324.5,0.30138]
[1735574593760,1.8055,3325.2,3324.6,3.96123]
[1735574593761,0.83582406,3325.2,3324.6,3.96123]
[1735574593958,1.7101,3325.8,3324.7,0.75341]
[1735574594255,1.7101,3325.8,3325.2,0.30132]
[1735574594256,0.83582406,3325.3,3325.2,0.30132]
[1735574594655,3.2078,3325.7,3325.6,0.30128]
[1735574594851,3.2078,3325.7,3325.6,1.74428]
[1735574595461,3.2078,3325.7,3325.0,3.2078]
[1735574595462,4.04362406,3325.7,3325.0,3.2078]
[1735574595653,0.3013,3325.4,3325.2,0.30131]
[1735574595955,0.30134,3325.0,3324.8,0.30134]
[1735574596154,3.2078,3325.3,3324.2,1.31887219]
[1735574596155,0.83582406,3324.8,3324.2,1.31887219]
[1735574596359,0.83582406,3324.6,3324.5,0.30138]
[1735574597260,3.2078,3324.9,3324.8,0.30135]
[1735574597652,4.04362406,3324.9,3324.4,1.443]
[1735574597861,4.04362406,3324.5,3324.4,1.74439]
[1735574598057,3.2078,3324.5,3324.4,1.74439]
[1735574598260,4.04362406,3324.5,3324.4,1.74439]
[1735574598560,3.2078,3324.5,3324.4,1.74439]
[1735574600557,3.2078,3324.5,3324.4,6.74439]
[1735574600754,3.2078,3324.5,3324.4,1.74439]
[1735574601959,3.2078,3325.0,3324.9,0.30134]
[1735574602164,3.2078,3325.8,3325.5,0.30129]
[1735574602361,3.2078,3325.8,3325.7,0.30127]
[1735574602570,4.9362,3326.2,3326.1,0.30123]
[1735574602768,0.83582406,3326.2,3326.1,0.30123]
[1735574603066,0.83582406,3326.2,3325.5,3.96101]
[1735574603067,1.6929,3326.5,3326.4,0.30121]
[1735574603268,2.52872406,3326.5,3326.4,0.30121]
[1735574603965,7.86943733,3326.7,3326.2,1.443]
[1735574604262,7.86943733,3326.7,3326.6,0.30119]
[1735574604263,4.66163733,3326.7,3326.6,0.30119]
[1735574604856,1.6929,3327.0,3326.2,2.19606]
[1735574605061,0.83582406,3326.5,3326.2,1.443]
[1735574605363,0.83582406,3326.4,3326.2,1.443]
[1735574605556,0.3012,3326.5,3326.3,0.30122]
[1735574605759,0.83582406,3326.3,3326.2,1.443]
[1735574605961,0.83582406,3326.3,3326.2,1.74422]
[1735574606256,3.2078,3326.7,3326.6,0.30119]
[1735574606664,4.34480406,3326.7,3326.6,0.30119]
[1735574606862,4.04362406,3326.7,3326.6,0.30119]
[1735574607263,4.04362406,3326.7,3326.2,1.443]
[1735574607466,0.83582406,3326.4,3326.3,0.30122]
[1735574607661,0.83582406,3326.5,3326.3,0.30122]
[1735574607859,0.83582406,3326.4,3326.2,1.443]
[1735574608060,0.83582406,3326.4,3325.9,3.2078]
[1735574608263,0.83582406,3326.0,3325.9,1.74425]
[1735574608667,0.83582406,3326.0,3325.6,0.30127]
[1735574608873,0.75304,3326.4,3325.6,0.30127]
[1735574608874,0.83582406,3325.7,3325.6,0.30127]
[1735574609061,0.83582406,3325.7,3325.3,4.69015925]
[1735574609269,4.9135,3325.9,3325.3,4.69015925]
[1735574609270,0.3013,3325.4,3325.3,4.69015925]
[1735574609472,3.2078,3325.5,3325.4,0.3013]
[1735574609969,1.7057,3325.9,3325.8,0.30126]
[1735574610177,2.00695,3325.9,3325.8,0.30126]
[1735574610371,2.84277406,3325.9,3325.8,0.30126]
[1735574610767,2.54152406,3325.9,3325.8,0.30126]
[1735574610968,0.30126,3325.8,3325.7,0.30126]
[1735574611171,0.30127,3325.7,3325.6,0.30128]
[1735574611369,1.13709406,3325.7,3325.6,0.30128]
[1735574611564,1.13709406,3325.7,3325.2,0.30131]
[1735574611565,0.30131,3325.3,3325.2,0.30131]
[1735574611868,0.83582406,3325.3,3325.2,0.30131]
[1735574612068,3.2078,3325.7,3325.6,0.30128]
[1735574612462,4.04362406,3325.7,3325.6,0.30128]
[1735574612663,3.2078,3325.7,3325.6,0.30128]
[1735574613272,3.2078,3325.7,3325.6,41.10128]
[1735574613575,4.04362406,3325.7,3325.6,41.10128]
[1735574613772,0.30129,3325.6,3325.5,0.30128]
[1735574614075,4.04362406,3325.7,3325.0,2.19634]
[1735574614076,3.2078,3325.7,3325.0,2.19634]
[1735574614274,3.2078,3325.3,3325.1,40.8]
[1735574614474,0.83582406,3325.2,3325.1,41.10132]
[1735574615174,1.13714406,3325.2,3325.1,40.8]
[1735574615364,2.96594406,3325.2,3325.1,40.8]
[1735574615571,6.8288,3325.2,3324.2,0.3014]
[1735574615874,0.53442406,3323.8,3323.7,4.99160925]
[1735574616176,0.53442406,3323.8,3323.7,45.79160925]
[1735574616370,3.4952,3324.3,3323.7,45.49015925]
[1735574616571,0.53442406,3324.1,3323.8,0.7536]
[1735574616774,0.53442406,3324.1,3324.0,0.30142]
[1735574617369,3.2078,3324.8,3324.7,0.30136]
[1735574617877,5.3184,3325.3,3324.7,0.30136]
[1735574617878,6.7376,3325.3,3325.2,0.30132]
[1735574618083,4.9632,3325.3,3325.2,0.30132]
[1735574618376,2.28982406,3325.3,3325.2,0.30132]
[1735574618569,2.28982406,3325.3,3325.2,41.10132]
[1735574619468,3.2078,3325.7,3325.6,0.30128]
[1735574620678,3.2078,3325.7,3325.6,41.10128]
[1735574621578,1.7554,3326.2,3325.6,40.8]
[1735574621781,1.7554,3326.2,3326.1,0.30123]
[1735574622279,2.28982406,3326.2,3326.1,0.30123]
[1735574625078,3.2078,3326.4,3325.7,3.2078]
[1735574625274,0.53442406,3326.3,3326.2,0.30122]
[1735574625675,3.2078,3326.4,3326.3,0.30122]
[1735574625875,3.74222406,3326.4,3326.3,0.30122]
[1735574627191,0.53442406,3326.4,3326.3,0.30122]
[1735574629889,4.04343406,3326.4,3326.3,0.30122]
[1735574630086,3.74222406,3326.4,3326.3,0.30122]
[1735574631581,3.2078,3326.4,3326.3,0.30122]
[1735574632385,3.2078,3326.4,3325.8,0.75315]
[1735574632386,0.30122,3326.3,3326.2,0.30122]
[1735574632587,3.85482,3326.3,3326.2,0.30122]
[1735574632785,4.08802406,3326.3,3326.2,0.30122]
[1735574632987,4.08802406,3326.3,3325.9,0.75312]
[1735574632988,3.2078,3326.4,3326.3,0.30122]
[1735574633184,3.74222406,3326.4,3326.3,0.30122]
[1735574633378,3.2078,3326.4,3326.3,0.30122]
[1735574633885,3.2078,3326.8,3325.9,4.7176749]
[1735574634088,0.53442406,3326.7,3326.3,0.75303]
[1735574634283,0.53442406,3326.7,3326.6,0.30119]
[1735574636084,0.53442406,3326.7,3326.2,1.50611]
[1735574636389,0.83564406,3326.3,3326.2,0.30121]
[1735574636787,0.30126,3325.9,3325.8,0.30126]
[1735574636999,0.83568406,3325.9,3325.8,0.30126]
[1735574637284,0.83568406,3325.9,3325.7,3.2078]
[1735574637285,0.30128,3325.8,3325.7,0.30126]
[1735574637490,0.30129,3325.6,3325.5,0.30128]
[1735574637686,3.50909,3325.6,3325.5,0.30128]
[1735574637887,3.74222406,3325.6,3325.3,4.69015925]
[1735574638191,0.83572406,3325.4,3325.3,4.99145925]
[1735574638386,0.53442406,3325.4,3325.3,0.3013]
[1735574638694,0.83572406,3325.4,3325.3,41.1013]
[1735574638882,0.83572406,3325.4,3325.3,41.10131]
[1735574639079,0.53442406,3325.4,3325.3,41.10131]
[1735574639282,0.83572406,3325.4,3325.3,40.8]
[1735574639582,0.83572406,3325.4,3324.7,4.69015925]
[1735574639583,0.53442406,3325.4,3324.7,4.69015925]
[1735574639887,3.2078,3325.0,3324.7,4.69015925]
[1735574640190,3.74222406,3325.0,3324.9,0.30134]
[1735574641387,3.74222406,3325.0,3324.5,0.75345]
[1735574641388,0.30135,3324.9,3324.8,0.30135]
[1735574641588,0.53442406,3324.6,3324.2,4.69015925]
[1735574641894,0.53442406,3324.3,3324.2,4.99156925]
[1735574642090,4.9784,3324.5,3324.2,4.69015925]
[1735574642386,1.7935,3325.3,3324.9,0.30134]
[1735574642387,3.2078,3325.0,3324.9,0.30134]
[1735574642794,3.74222406,3325.0,3324.9,0.30134]
[1735574642993,3.74222406,3325.0,3324.6,1.441]
[1735574643293,0.53442406,3324.7,3324.6,1.74236]
[1735574643497,0.53442406,3324.7,3323.9,4.69015925]
[1735574643692,0.53442406,3324.1,3324.0,1.74242]
[1735574643886,0.53442406,3324.0,3323.9,4.99158925]
[1735574645491,0.53442406,3324.0,3323.9,0.30143]
[1735574646295,0.53442406,3324.0,3323.9,41.10143]
[1735574646801,4.9481,3324.6,3324.0,0.75357]
[1735574646994,0.53442406,3324.5,3324.4,0.30139]
[1735574647186,3.52488981,3325.2,3324.6,0.75343]
[1735574647386,3.52488981,3325.2,3325.1,0.30132]
[1735574647598,3.52488981,3325.2,3325.1,41.10132]
[1735574647788,2.16203981,3325.2,3325.1,46.10132]
[1735574647995,4.66163733,3326.0,3325.9,0.30125]
[1735574648294,5.19606139,3326.0,3325.9,0.30125]
[1735574648790,5.19606139,3326.0,3325.9,41.10125]
[1735574649198,1.8224,3326.5,3325.9,40.8]
[1735574649398,0.53442406,3326.2,3325.9,40.8]
[1735574649591,1.8224,3326.5,3325.9,40.8]
[1735574649592,0.53442406,3326.0,3325.9,40.8]
[1735574649794,0.53442406,3326.0,3325.9,41.10125]
[1735574650001,4.8621,3326.7,3326.0,0.75311]
[1735574650193,0.53442406,3326.5,3326.4,0.30121]
[1735574651397,3.2078,3326.7,3326.6,0.30119]
[1735574651791,3.74222406,3326.7,3326.6,0.30119]
[1735574652787,1.8224,3327.2,3326.4,6.1639749]
[1735574652788,5.0302,3327.2,3326.4,6.1639749]
[1735574653097,3.74222406,3327.2,3327.1,0.30114]
[1735574654392,3.2078,3327.6,3326.9,1.439]
[1735574654598,0.53442406,3327.4,3327.3,0.30113]
[1735574655794,3.2078,3327.6,3327.5,0.30111]
[1735574656198,3.74222406,3327.6,3327.5,0.30111]
[1735574656799,0.53442406,3327.6,3327.5,0.30111]
[1735574657905,3.74222406,3327.6,3327.5,0.30111]
[1735574658307,3.74222406,3327.6,3327.2,1.439]
[1735574658604,0.53442406,3327.3,3327.2,1.74013]
[1735574659803,0.53442406,3327.3,3326.4,6.1639749]
[1735574660109,0.53442406,3326.5,3326.4,0.30121]
[1735574660502,0.53442406,3326.5,3326.3,1.439]
[1735574660704,3.4958,3326.7,3326.3,1.74022]
[1735574660705,0.53442406,3326.4,3326.3,1.74022]
[1735574661708,3.2078,3326.8,3326.7,0.30118]
[1735574662100,3.2078,3327.4,3327.3,0.30112]
[1735574662495,3.74222406,3327.4,3327.3,0.30112]
[1735574665001,3.74222406,3327.4,3326.9,1.439]
[1735574665199,3.74222406,3327.0,3326.9,1.439]
[1735574665407,3.74222406,3327.0,3326.8,0.30117]
[1735574665611,0.53442406,3326.3,3326.0,4.69015925]
[1735574665909,0.53442406,3326.3,3326.2,0.30122]
[1735574666109,0.30122,3326.3,3326.2,0.30122]
[1735574666304,0.53442406,3326.3,3326.0,4.69015925]
[1735574666498,3.2078,3326.1,3326.0,0.30124]
[1735574666703,0.53442406,3326.2,3325.9,40.8]
[1735574666909,0.53442406,3326.2,3326.1,0.30123]
[1735574667408,0.30124,3326.0,3325.9,40.8]
[1735574667704,0.53442406,3326.0,3325.9,41.10125]
[1735574667908,0.83566406,3326.0,3325.9,40.8]
[1735574668207,4.04346406,3326.0,3325.9,40.8]
[1735574668408,3.74222406,3326.0,3325.9,41.10125]
[1735574668907,4.04346406,3326.0,3325.9,41.10125]
[1735574669203,4.04346406,3326.0,3325.9,40.8]
[1735574669611,4.04346406,3326.0,3325.9,41.10125]
[1735574669907,4.04346406,3326.0,3325.9,40.8]
[1735574670307,4.04346406,3326.0,3325.9,41.10125]
[1735574670308,3.74222406,3326.0,3325.9,41.10125]
[1735574671009,3.2078,3326.0,3325.9,41.10125]
[1735574671209,6.6753,3326.4,3326.3,0.30122]
[1735574671411,4.898,3326.4,3326.3,0.30122]
[1735574671613,3.74222406,3326.4,3326.3,1.74022]
[1735574671810,0.53442406,3326.4,3326.3,1.74022]
[1735574672004,2.35181301,3326.8,3326.3,1.439]
[1735574672217,0.53442406,3326.8,3326.7,41.10118]
[1735574674116,4.04339406,3326.8,3326.5,0.30119]
[1735574674414,0.83561406,3326.6,3326.5,0.30119]
[1735574674614,0.3012,3326.5,3326.4,0.3012]
[1735574674816,0.53442406,3326.3,3326.2,1.74022]
[1735574675314,0.53442406,3326.3,3326.2,42.54022]
[1735574676913,0.53442406,3326.3,3326.2,40.8]
[1735574677218,0.53442406,3326.3,3326.2,41.10122]
[1735574678114,0.83564406,3326.3,3326.2,40.8]
[1735574678413,0.30125,3326.0,3325.9,0.30125]
[1735574678617,0.83567406,3326.0,3325.9,0.30125]
[1735574678814,3.74222406,3326.0,3325.6,40.8]
[1735574679015,0.30127,3325.8,3325.7,0.30126]
[1735574679518,0.53442406,3325.8,3325.7,0.30126]
[1735574683114,3.2078,3326.0,3325.9,0.30125]
[1735574684320,3.74222406,3326.0,3325.9,0.30125]
[1735574684514,3.74222406,3326.0,3325.8,0.30126]
[1735574684714,0.30126,3325.9,3325.8,0.30126]
[1735574685024,2.32142406,3325.9,3325.8,0.30126]
[1735574686724,3.2078,3326.0,3325.9,0.30125]
[1735574687117,3.74222406,3326.0,3325.9,0.30125]
[1735574687316,0.53442406,3326.0,3325.9,0.30125]
[1735574687521,1.8031,3326.3,3325.9,0.30125]
[1735574687728,3.2078,3326.5,3326.1,0.30123]
[1735574687729,0.53442406,3326.2,3326.1,0.30123]
[1735574688620,1.7841,3327.0,3325.8,3.96095]
[1735574688621,3.2078,3326.9,3326.4,0.30121]
[1735574688824,2.08525,3327.0,3326.5,0.3012]
[1735574688825,0.53442406,3326.6,3326.5,0.3012]
[1735574692323,4.9919,3327.0,3326.9,0.30116]
[1735574692523,1.8023,3327.3,3327.2,0.30113]
[1735574692724,2.35181301,3327.5,3327.1,3.96065]
[1735574692927,2.35181301,3327.5,3327.4,0.30112]
[1735574693225,2.35181301,3327.5,3327.4,41.10112]
[1735574693431,2.88623707,3327.5,3327.4,40.8]
[1735574693630,0.83553406,3327.5,3327.4,40.8]
[1735574693923,0.53442406,3327.5,3327.4,41.10112]
[1735574696220,0.53442406,3327.5,3327.4,0.30112]
[1735574696420,3.74222406,3327.5,3326.8,4.6448]
[1735574696620,0.53442406,3327.4,3327.3,0.30113]
[1735574696828,0.53442406,3327.4,3327.3,41.10113]
[1735574697331,0.0026654,3327.6,3327.5,0.30111]
[1735574700323,5.4e-06,3327.6,3327.5,5.30111]
[1735574700924,5.4e-06,3327.6,3327.5,0.30111]
[1735574701319,5.4e-06,3327.6,3327.5,5.30111]
[1735574701524,3.5494,3328.5,3328.4,0.30103]
[1735574701726,1.8036,3328.5,3328.4,0.30103]
[1735574701926,2.35181301,3328.6,3328.5,0.30102]
[1735574702135,4.9089,3329.1,3328.5,0.30102]
[1735574702136,2.35181301,3328.8,3328.7,0.301]
[1735574702433,2.88623707,3328.8,3328.7,0.301]
[1735574703137,2.35181301,3328.8,3328.7,3.5088]
[1735574703431,2.88623707,3328.8,3328.7,3.5088]
[1735574703731,2.88623707,3328.8,3328.7,44.3088]
[1735574703732,2.35181301,3328.8,3328.7,44.3088]
[1735574703936,4.9085,3329.5,3329.4,0.30094]
[1735574704125,5.44292406,3329.5,3329.4,0.30094]
[1735574704526,5.44292406,3329.5,3328.7,44.0078]
[1735574704728,0.53442406,3329.1,3328.7,44.0078]
[1735574704932,0.53442406,3329.3,3329.2,0.30095]
[1735574705634,0.30096,3329.2,3329.1,0.30096]
[1735574705932,2.35181301,3330.3,3330.2,0.30086]
[1735574706232,2.35181301,3330.3,3330.2,4.6940349]
[1735574706425,2.35181301,3330.3,3330.2,45.4940349]
[1735574706628,2.35181301,3330.3,3330.2,47.1744349]
[1735574706833,2.35181301,3330.3,3330.2,52.1744349]
[1735574707234,2.35181301,3330.3,3330.2,47.1744349]
[1735574707540,3.2078,3331.1,3331.0,0.30079]
[1735574707729,6.74622406,3331.1,3331.0,0.30079]
[1735574708429,3.2078,3331.1,3330.2,6.0735749]
[1735574708630,1.693,3331.0,3330.9,0.3008]
[1735574709039,6.97532406,3331.0,3330.9,0.3008]
[1735574709333,6.97532406,3331.0,3330.4,40.8]
[1735574709539,3.53842406,3330.5,3330.4,0.30084]
[1735574709745,3.83926406,3330.5,3330.1,0.30087]
[1735574709942,3.53842406,3330.2,3330.1,0.30087]
[1735574710330,5.30082406,3330.2,3330.1,0.30087]
[1735574710533,0.30088,3330.1,3329.8,0.30089]
[1735574710838,3.53842406,3329.7,3329.4,1.435]
[1735574711042,3.53842406,3329.5,3329.4,1.73593]
[1735574712333,3.2078,3329.9,3329.4,4.6921049]
[1735574712532,6.74622406,3329.9,3329.8,0.3009]
[1735574712939,3.2078,3329.9,3329.8,0.3009]
[1735574713241,3.5063,3330.2,3330.1,0.30087]
[1735574713435,1.7624,3330.2,3330.1,0.30087]
[1735574713631,1.7042,3330.7,3330.6,0.30083]
[1735574713837,5.24262406,3330.7,3330.6,0.30083]
[1735574714144,1.6532,3331.3,3331.2,0.30077]
[1735574714341,5.19162406,3331.3,3331.2,0.30077]
[1735574719648,5.49238406,3331.3,3331.2,0.30077]
[1735574719941,0.3008,3331.0,3330.5,1.434]
[1735574720143,0.3008,3331.0,3330.9,0.3008]
[1735574720338,1.6532,3331.3,3330.5,1.434]
[1735574720641,3.53842406,3330.8,3330.7,0.30082]
[1735574721138,1.6532,3331.3,3331.2,0.30077]
[1735574721545,5.19162406,3331.3,3331.2,0.30077]
[1735574721738,5.19162406,3331.3,3330.6,2.9561749]
[1735574721739,0.30078,3331.1,3330.6,2.9561749]
[1735574721940,3.53842406,3330.7,3330.5,1.434]
[1735574722134,3.53842406,3330.7,3330.6,3.2570049]
[1735574722942,1.6532,3331.3,3331.2,0.30077]
[1735574723136,5.19162406,3331.3,3331.2,0.30077]
[1735574723542,5.19162406,3331.3,3331.2,41.10077]
[1735574723744,0.30078,3331.1,3331.0,1.434]
[1735574723946,3.83920406,3331.1,3331.0,1.73478]
[1735574724648,0.30081,3330.8,3330.7,0.30081]
[1735574725046,3.83923406,3330.8,3330.7,0.30081]
[1735574725544,3.53842406,3330.8,3330.7,0.30081]
[1735574726439,3.53842406,3330.8,3330.7,41.10081]
[1735574727139,3.53842406,3330.8,3329.7,9.26510932]
[1735574727140,0.30084,3330.5,3330.4,0.30084]
[1735574727342,3.53842406,3330.0,3329.9,3.50869]
[1735574727639,3.83930406,3330.0,3329.9,40.8]
[1735574727944,3.53842406,3330.0,3329.9,41.10089]
[1735574728444,3.83930406,3330.0,3329.9,40.8]
[1735574728847,3.53842406,3330.0,3329.5,0.30092]
[1735574729037,3.53842406,3330.0,3329.0,6.1639749]
[1735574729038,0.30093,3329.5,3329.4,0.30093]
[1735574729242,3.83935406,3329.5,3329.4,0.30093]
[1735574729440,5.31872406,3329.5,3329.1,40.8]
[1735574729641,3.83937406,3329.2,3329.1,41.10096]
[1735574730142,5.60167406,3329.2,3329.1,40.8]
[1735574730338,5.60167406,3329.2,3329.1,41.10096]
[1735574730643,5.30072406,3329.2,3329.1,41.10096]
[1735574730854,3.53842406,3329.2,3329.1,41.10096]
[1735574731043,3.2078,3329.7,3329.1,41.10096]
[1735574731044,1.7623,3330.0,3329.1,40.8]
[1735574731248,3.53842406,3329.6,3329.5,0.30093]
[1735574731844,3.2078,3330.1,3330.0,0.30088]
[1735574732544,1.6749,3330.5,3330.4,0.30084]
[1735574732741,5.21332406,3330.5,3330.4,0.30084]
[1735574733147,5.21332406,3330.5,3330.2,0.30086]
[1735574733148,0.30086,3330.3,3330.2,0.30086]
[1735574733450,3.53842406,3330.1,3329.8,0.3009]
[1735574733651,3.53842406,3329.9,3329.8,0.3009]
[1735574734149,1.6749,3330.5,3329.7,0.75227]
[1735574734449,0.30085,3330.4,3330.3,0.30085]
[1735574734652,1.6749,3330.5,3330.1,0.30087]
[1735574734653,3.53842406,3330.2,3330.1,0.30087]
[1735574736246,3.53842406,3330.2,3330.1,41.10087]
[1735574737248,1.7776,3330.7,3330.1,40.8]
[1735574737451,3.53842406,3330.6,3330.5,0.30084]
[1735574737752,3.53842406,3330.6,3330.5,1.73484]
[1735574738255,0.049,3330.7,3330.6,0.30083]
[1735574738655,3.58742406,3330.7,3330.6,0.30083]
[1735574739653,0.049,3330.7,3330.6,0.30083]
[1735574740548,0.049,3330.7,3330.6,3.2570049]
[1735574740748,0.049,3330.7,3330.6,0.30083]
[1735574740949,0.049,3331.6,3331.5,0.30075]
[1735574741147,3.58742406,3331.6,3331.5,0.30075]
[1735574741551,3.58742406,3331.6,3331.5,41.10075]
[1735574741855,3.88816406,3331.6,3331.5,40.8]
[1735574742160,3.58742406,3331.6,3331.5,41.10075]
[1735574743862,3.58742406,3331.6,3331.5,0.30075]
[1735574744556,0.049,3331.6,3331.5,41.10075]
[1735574745662,0.049,3331.6,3331.5,0.30075]
[1735574746059,0.049,3332.0,3331.5,0.30075]
[1735574746269,0.049,3332.1,3332.0,0.3007]
[1735574746454,2.33453865,3332.6,3332.0,0.3007]
[1735574746455,2.38353865,3332.6,3332.0,8.2568749]
[1735574746659,2.38353865,3332.6,3332.5,3.50846]
[1735574746956,7.00361595,3333.5,3332.5,45.4398]
[1735574747159,7.00361595,3333.5,3332.8,3.2568049]
[1735574747362,4.6690773,3333.0,3332.9,0.30062]
[1735574747561,4.6690773,3333.0,3332.9,3.50842]
[1735574747864,4.6690773,3333.0,3332.9,44.30842]
[1735574749063,3.2078,3334.1,3333.8,0.30053]
[1735574749260,3.53842406,3333.9,3333.8,0.30053]
[1735574749862,3.53842406,3333.9,3333.7,41.10054]
[1735574750168,3.53842406,3333.8,3333.7,0.30055]
[1735574750762,3.53842406,3333.8,3333.6,1.431]
[1735574750965,3.53842406,3333.7,3333.6,1.431]
[1735574751160,3.83897406,3333.7,3333.6,1.431]
[1735574751466,3.53842406,3333.7,3333.6,1.73156]
[1735574751860,3.53842406,3333.7,3333.6,0.30056]
[1735574754364,3.53842406,3333.7,3333.5,1.73156]
[1735574754561,3.53842406,3333.6,3333.5,1.73156]
[1735574755866,0.30056,3333.5,3333.4,3.2078]
[1735574756063,3.53842406,3333.5,3332.7,0.30064]
[1735574756269,3.53842406,3333.5,3332.3,2.9561749]
[1735574756270,0.30064,3332.7,3332.1,1.431]
[1735574756468,3.53842406,3332.2,3332.1,1.73169]
[1735574757771,3.53842406,3332.2,3332.1,0.30069]
[1735574759167,3.53842406,3332.2,3332.0,42.231]
[1735574759467,6.74622406,3332.1,3332.0,41.1007]
[1735574760373,11.74622406,3332.1,3331.4,0.30075]
[1735574760568,3.53842406,3331.0,3330.9,1.7318]
[1735574760764,3.53842406,3331.0,3330.9,42.5318]
[1735574760966,3.2078,3331.5,3331.4,0.30075]
[1735574761366,6.74622406,3331.5,3331.4,0.30075]
[1735574761567,3.2078,3331.5,3331.4,0.30075]
[1735574762273,3.2078,3331.5,3331.4,1.73175]
[1735574762469,1.8136,3332.0,3331.9,0.30071]
[1735574762974,5.35202406,3332.0,3331.9,41.10071]
[1735574763167,3.53842406,3332.0,3331.9,41.10071]
[1735574764976,3.2078,3332.3,3331.9,40.8]
[1735574765171,3.53842406,3332.2,3332.1,0.30069]
[1735574765872,3.2078,3332.7,3332.6,0.30065]
[1735574766073,3.2078,3332.7,3332.6,1.73165]
[1735574766377,3.2078,3332.7,3332.0,3.2078]
[1735574766378,6.74622406,3332.7,3332.0,3.2078]
[1735574766573,1.7672,3332.6,3332.1,1.431]
[1735574766874,1.6487,3332.5,3332.4,0.30066]
[1735574767275,3.53842406,3332.5,3332.4,0.30066]
[1735574767970,3.2078,3332.7,3332.6,0.30065]
[1735574768372,6.74622406,3332.7,3332.6,0.30065]
[1735574768780,6.74622406,3332.7,3332.6,41.10065]
[1735574769476,3.2078,3332.7,3332.6,41.10065]
[1735574769982,3.2078,3333.2,3333.1,0.3006]
[1735574770174,3.2078,3333.2,3333.1,1.7296]
[1735574770669,3.2078,3333.2,3333.1,4.6857749]
[1735574771880,3.2078,3333.2,3333.1,45.4857749]
[1735574773979,3.2078,3333.8,3333.7,0.30055]
[1735574774481,6.74622406,3333.8,3333.7,0.30055]
[1735574775574,3.2078,3333.8,3333.7,0.30055]
[1735574776881,3.2078,3334.4,3334.3,0.30049]
[1735574777186,6.74622406,3334.4,3334.3,42.52949]
[1735574777981,6.74622406,3334.4,3334.3,1.72949]
[1735574778283,3.53842406,3334.4,3334.3,1.72949]
[1735574779284,3.2078,3335.2,3335.0,0.30043]
[1735574779285,1.6315,3335.1,3335.0,0.30043]
[1735574779487,3.3721,3335.1,3335.0,0.30043]
[1735574779783,6.91052406,3335.1,3335.0,0.30043]
[1735574781285,6.91052406,3335.1,3334.5,3.95898]
[1735574781286,11.91052406,3335.1,3334.1,3.2078]
[1735574781483,3.53842406,3334.2,3334.1,0.30051]
[1735574781788,3.53842406,3334.2,3333.5,3.2078]
[1735574781996,3.83898406,3333.6,3333.5,1.72857]
[1735574782288,3.53842406,3333.6,3333.5,1.72857]
[1735574782585,3.83898406,3333.6,3333.4,0.30057]
[1735574782885,3.83898406,3333.6,3333.2,6.17486796]
[1735574782886,3.83900406,3333.3,3333.2,6.17486796]
[1735574783085,0.3006,3333.1,3333.0,9.26717437]
[1735574783286,3.83902406,3333.1,3333.0,9.26717437]